fUSD/lending_fUSD_20260506
["ID","MTS","AMOUNT","RATE_DAILY","PERIOD"]
[421692536,1778044233000,-500.0,0.00018199,2]
[421692515,1778044233000,-302.60699763,0.00018199,2]
[421692517,1778044233000,-500.0,0.00018199,2]
[421692530,1778044233000,-500.0,0.00018199,2]
[421692511,1778044233000,-500.0,0.00018199,2]
[421692481,1778044233000,-500.0,0.00018199,2]
[421692513,1778044233000,-500.0,0.00018199,2]
[421692484,1778044233000,-500.0,0.00018199,2]
[421692486,1778044233000,-500.0,0.00018199,2]
[421692488,1778044233000,-500.0,0.00018199,2]
[421692489,1778044233000,-500.0,0.00018199,2]
[421692487,1778044233000,-500.0,0.00018199,2]
[421692495,1778044233000,-500.0,0.00018199,2]
[421692485,1778044233000,-177.40584046,0.00018199,2]
[421692493,1778044233000,-500.0,0.00018199,2]
[421692492,1778044233000,-500.0,0.00018199,2]
[421692491,1778044233000,-500.0,0.00018199,2]
[421692494,1778044233000,-500.0,0.00018199,2]
[421692480,1778044233000,-500.0,0.00018199,2]
[421692503,1778044233000,-500.0,0.00018199,2]
[421692496,1778044233000,-500.0,0.00018199,2]
[421692510,1778044233000,-500.0,0.00018199,2]
[421692508,1778044233000,-500.0,0.00018199,2]
[421692507,1778044233000,-500.0,0.00018199,2]
[421692497,1778044233000,-500.0,0.00018199,2]
[421692500,1778044233000,-500.0,0.00018199,2]
[421692505,1778044233000,-500.00000001,0.00018199,2]
[421692498,1778044233000,-500.0,0.00018199,2]
[421692499,1778044233000,-500.0,0.00018199,2]
[421692504,1778044233000,-300.0,0.00018199,2]
[421692501,1778044233000,-500.0,0.00018199,2]
[421692502,1778044233000,-500.0,0.00018199,2]
[421692506,1778044233000,-500.0,0.00018199,2]
[421692551,1778044234000,-50085.718605,0.000182,2]
[421692541,1778044234000,-500.0,0.00018199,2]
[421692543,1778044234000,-500.0,0.00018199,2]
[421692542,1778044234000,-500.0,0.00018199,2]
[421692545,1778044234000,-168.0,0.00018199,2]
[421692544,1778044234000,-150.0,0.00018199,2]
[421692549,1778044234000,-153825.48711943,0.000182,2]
[421692546,1778044234000,-168.0,0.00018199,2]
[421692548,1778044234000,-2014918.42848896,0.000182,2]
[421692550,1778044234000,-132478.91887239,0.000182,2]
[421692553,1778044234000,-673.50309465,0.000182,2]
[421692552,1778044234000,-1337.70986208,0.000182,2]
[421692556,1778044234000,-815.55850859,0.000182,2]
[421692557,1778044234000,-1148.76047939,0.000182,2]
[421692554,1778044234000,-50.06260266,0.000182,2]
[421692555,1778044234000,-5608.65899614,0.000182,2]
[421692547,1778044234000,-169.99787233,0.00018199,2]
[421692558,1778044235000,162.0,0.000301,120]
[421692561,1778044238000,-366.42554,0.00018199,2]
[421692560,1778044238000,-151.0,0.00018199,2]
[421692563,1778044238000,-1049.53799999,0.000182,2]
[421692565,1778044238000,-380.52932165,0.000182,2]
[421692562,1778044238000,-48664.61491867,0.000182,2]
[421692564,1778044238000,-26275.76890073,0.000182,2]
[421692566,1778044238000,-319.22242758,0.000182,2]
[421692567,1778044238000,-598.26313241,0.000182,2]
[421692570,1778044238000,-3602.37793262,0.000182,2]
[421692569,1778044238000,-2107.10727225,0.000182,2]
[421692571,1778044238000,-1053.55722761,0.000182,2]
[421692574,1778044238000,-5344.8976806,0.000182,2]
[421692573,1778044238000,-579.78867862,0.000182,2]
[421692572,1778044238000,-1525.92095784,0.000182,2]
[421692568,1778044238000,-2592.62594964,0.000182,2]
[421692578,1778044240000,-438.1943482,0.000182,2]
[421692577,1778044240000,-44962.9809705,0.000182,2]
[421692588,1778044240000,-500.0,0.00019178,2]
[421692581,1778044240000,-3292.0,0.00018231,2]
[421692579,1778044240000,-198.94167767,0.000182,2]
[421692585,1778044240000,-973.94949673,0.000187,2]
[421692586,1778044240000,-973.94949673,0.000189,2]
[421692582,1778044240000,-89398.23,0.00018356,2]
[421692583,1778044240000,-173.13,0.00018389,2]
[421692580,1778044240000,-183.21277,0.000182,2]
[421692587,1778044240000,-973.94949673,0.000191,2]
[421692589,1778044240000,-500.0,0.00019178,2]
[421692590,1778044240000,-500.0,0.00019178,2]
[421692593,1778044240000,-500.0,0.00019178,2]
[421692591,1778044240000,-500.0,0.00019178,2]
[421692594,1778044240000,-500.0,0.00019178,2]
[421692592,1778044240000,-500.0,0.00019178,2]
[421692584,1778044240000,-2551.2,0.0001841,2]
[421692628,1778044241000,-500.0,0.0002095,2]
[421692639,1778044241000,-406.24,0.00021273,2]
[421692633,1778044241000,-318.0,0.00021,2]
[421692629,1778044241000,-482.0,0.00021,2]
[421692630,1778044241000,-319.0,0.00021,2]
[421692623,1778044241000,-150.0,0.000208,2]
[421692624,1778044241000,-150.0,0.000208,2]
[421692622,1778044241000,-150.0,0.000208,2]
[421692625,1778044241000,-150.0,0.000208,2]
[421692632,1778044241000,-250.0,0.00021,2]
[421692627,1778044241000,-319.14849905,0.0002095,2]
[421692631,1778044241000,-158.0,0.00021,2]
[421692648,1778044241000,-600.0,0.00021972,7]
[421692637,1778044241000,-174.0,0.00021,2]
[421692634,1778044241000,-984.0,0.00021,2]
[421692636,1778044241000,-457.0,0.00021,2]
[421692640,1778044241000,-2915.26,0.00021273,2]
[421692642,1778044241000,-350.75,0.00021273,2]
[421692643,1778044241000,-307.4936949,0.00021498,2]
[421692641,1778044241000,-2856.51,0.00021273,2]
[421692646,1778044241000,-225.3,0.00021918,5]
[421692644,1778044241000,-2132.37882144,0.00021586,2]
[421692645,1778044241000,-5000.0,0.00021918,2]
[421692621,1778044241000,-2742.68307681,0.00020722,2]
[421692635,1778044241000,-321.0,0.00021,2]
[421692619,1778044241000,-253.0,0.00020369,2]
[421692610,1778044241000,-318.0,0.0002,2]
[421692618,1778044241000,-4609.0,0.00020054,2]
[421692597,1778044241000,-500.0,0.00019178,2]
[421692595,1778044241000,-500.0,0.00019178,2]
[421692598,1778044241000,-11082.87,0.00019178,2]
[421692601,1778044241000,-973.94949673,0.000194,2]
[421692599,1778044241000,-2000.0,0.00019202,2]
[421692596,1778044241000,-500.0,0.00019178,2]
[421692600,1778044241000,-973.94949673,0.000193,2]
[421692602,1778044241000,-2742.68307681,0.00019411,2]
[421692603,1778044241000,-166.64,0.00019533,2]
[421692612,1778044241000,-321.0,0.0002,2]
[421692613,1778044241000,-457.0,0.0002,2]
[421692620,1778044241000,-2551.2,0.00020381,2]
[421692604,1778044241000,-500.0,0.00019744,2]
[421692607,1778044241000,-319.0,0.0002,2]
[421692652,1778044241000,-158.0,0.00022,2]
[421692609,1778044241000,-250.0,0.0002,2]
[421692611,1778044241000,-984.0,0.0002,2]
[421692608,1778044241000,-158.0,0.0002,2]
[421692605,1778044241000,-482.0,0.0002,2]
[421692606,1778044241000,-400.0,0.0002,2]
[421692616,1778044241000,-171.74279696,0.0002,2]
[421692626,1778044241000,-211.0,0.000208,2]
[421692617,1778044241000,-174.0,0.0002,2]
[421692615,1778044241000,-3909.0,0.0002,2]
[421692614,1778044241000,-1000.0,0.0002,7]
[421692649,1778044241000,-482.0,0.00022,2]
[421692638,1778044241000,-2000.0,0.00021122,2]
[421692647,1778044241000,-1650.0,0.00021972,2]
[421692680,1778044241000,-1000.0,0.00023921,2]
[421692681,1778044241000,-482.0,0.00024,2]
[421692682,1778044241000,-500.0,0.00024,2]
[421692685,1778044241000,-250.0,0.00024,2]
[421692687,1778044241000,-984.0,0.00024,2]
[421692686,1778044241000,-318.0,0.00024,2]
[421692683,1778044241000,-319.0,0.00024,2]
[421692684,1778044241000,-173.28566167,0.00024,2]
[421692688,1778044241000,-321.0,0.00024,2]
[421692689,1778044241000,-457.0,0.00024,2]
[421692691,1778044241000,-285.18294388,0.00024173,4]
[421692690,1778044241000,-5017.07148103,0.00024165,2]
[421692692,1778044241000,-500.0,0.00024234,2]
[421692700,1778044241000,-1500000.0,0.00024235,2]
[421692693,1778044241000,-500.0,0.00024234,2]
[421692695,1778044241000,-500.0,0.00024234,2]
[421692698,1778044241000,-500.0,0.00024234,2]
[421692694,1778044241000,-500.0,0.00024234,2]
[421692696,1778044241000,-500.0,0.00024234,2]
[421692697,1778044241000,-500.0,0.00024234,2]
[421692701,1778044241000,-9035.0,0.00024265,2]
[421692703,1778044241000,-500.0,0.00024273,2]
[421692702,1778044241000,-500.0,0.00024273,2]
[421692651,1778044241000,-319.0,0.00022,2]
[421692704,1778044241000,-473.75913536,0.00024273,2]
[421692679,1778044241000,-245.87494951,0.00023373,2]
[421692678,1778044241000,-500.0,0.00023373,2]
[421692699,1778044241000,-500.0,0.00024234,2]
[421692675,1778044241000,-6223.3159,0.00023284,2]
[421692654,1778044241000,-318.0,0.00022,2]
[421692653,1778044241000,-250.0,0.00022,2]
[421692672,1778044241000,-321.0,0.00023,2]
[421692650,1778044241000,-450.0,0.00022,2]
[421692655,1778044241000,-984.0,0.00022,2]
[421692656,1778044241000,-321.0,0.00022,2]
[421692659,1778044241000,-2742.68307681,0.00022033,2]
[421692657,1778044241000,-457.0,0.00022,2]
[421692660,1778044241000,-6453.0,0.00022059,2]
[421692658,1778044241000,-174.0,0.00022,2]
[421692662,1778044241000,-2551.2,0.00022353,2]
[421692665,1778044241000,-166.64,0.00022757,2]
[421692663,1778044241000,-170.86185645,0.00022407,2]
[421692661,1778044241000,-399.75850779,0.00022167,2]
[421692674,1778044241000,-2000.0,0.00023043,2]
[421692666,1778044241000,-482.0,0.00023,2]
[421692667,1778044241000,-319.0,0.00023,2]
[421692677,1778044241000,-186.53575633,0.00023373,2]
[421692668,1778044241000,-158.0,0.00023,2]
[421692669,1778044241000,-250.0,0.00023,2]
[421692670,1778044241000,-318.0,0.00023,2]
[421692676,1778044241000,-2742.68307681,0.00023344,2]
[421692673,1778044241000,-457.0,0.00023,2]
[421692671,1778044241000,-984.0,0.00023,2]
[421692664,1778044241000,-199.36,0.00022603,2]
[421692740,1778044242000,-475.44,0.00024681,2]
[421692736,1778044242000,-1000.0,0.00024658,2]
[421692747,1778044242000,-1000.0,0.00024821,2]
[421692745,1778044242000,-1000.0,0.00024821,2]
[421692744,1778044242000,-931.73147682,0.00024821,2]
[421692742,1778044242000,-1000.0,0.00024821,2]
[421692739,1778044242000,-154.55,0.00024658,2]
[421692741,1778044242000,-1000.0,0.00024821,2]
[421692735,1778044242000,-190.39,0.00024658,2]
[421692746,1778044242000,-1000.0,0.00024821,2]
[421692737,1778044242000,-174.52,0.00024658,2]
[421692743,1778044242000,-1000.0,0.00024821,2]
[421692749,1778044242000,-632.20967093,0.00024821,2]
[421692761,1778044242000,-2132.37882144,0.00025073,2]
[421692751,1778044242000,-198.94167767,0.00024965,2]
[421692750,1778044242000,-475.44,0.00024955,2]
[421692752,1778044242000,-312.8277369,0.00024975,2]
[421692762,1778044242000,-151.51,0.00025079,7]
[421692763,1778044242000,-154.55,0.00025079,7]
[421692754,1778044242000,-319.0,0.00025,2]
[421692753,1778044242000,-485.58030331,0.00025,2]
[421692764,1778044242000,-150.0,0.000251,14]
[421692757,1778044242000,-998.0,0.00025,2]
[421692758,1778044242000,-325.0,0.00025,2]
[421692759,1778044242000,-473.0,0.00025,2]
[421692734,1778044242000,-500.0,0.00024657,2]
[421692755,1778044242000,-250.0,0.00025,2]
[421692748,1778044242000,-1000.0,0.00024821,2]
[421692732,1778044242000,-500.0,0.00024657,2]
[421692712,1778044242000,-500.0,0.00024273,2]
[421692738,1778044242000,-151.51,0.00024658,2]
[421692760,1778044242000,-2000.0,0.00025016,2]
[421692713,1778044242000,-500.0,0.00024273,2]
[421692705,1778044242000,-180.45515395,0.00024273,2]
[421692707,1778044242000,-500.0,0.00024273,2]
[421692710,1778044242000,-163.68234244,0.00024273,2]
[421692711,1778044242000,-500.0,0.00024273,2]
[421692706,1778044242000,-500.0,0.00024273,2]
[421692708,1778044242000,-500.0,0.00024273,2]
[421692709,1778044242000,-500.0,0.00024273,2]
[421692726,1778044242000,-500.0,0.00024657,2]
[421692725,1778044242000,-500.0,0.00024657,2]
[421692715,1778044242000,-1500.0,0.00024468,2]
[421692716,1778044242000,-500.0,0.0002462,2]
[421692714,1778044242000,-2551.2,0.00024324,2]
[421692717,1778044242000,-2742.68307681,0.00024656,2]
[421692722,1778044242000,-500.0,0.00024657,2]
[421692721,1778044242000,-500.0,0.00024657,2]
[421692719,1778044242000,-500.0,0.00024657,2]
[421692720,1778044242000,-500.0,0.00024657,2]
[421692723,1778044242000,-500.0,0.00024657,2]
[421692718,1778044242000,-500.0,0.00024657,2]
[421692724,1778044242000,-500.0,0.00024657,2]
[421692727,1778044242000,-500.0,0.00024657,2]
[421692728,1778044242000,-500.0,0.00024657,2]
[421692733,1778044242000,-500.0,0.00024657,2]
[421692731,1778044242000,-500.0,0.00024657,2]
[421692729,1778044242000,-500.0,0.00024657,2]
[421692730,1778044242000,-500.0,0.00024657,2]
[421692756,1778044242000,-334.0,0.00025,2]
[421692809,1778044242000,-154.55,0.00026765,30]
[421692766,1778044242000,-500.0,0.00025368,2]
[421692793,1778044242000,-296.59,0.00026245,14]
[421692797,1778044242000,-197.73,0.00026245,14]
[421692801,1778044242000,-151.51,0.00026343,7]
[421692808,1778044242000,-151.51,0.00026765,30]
[421692803,1778044242000,-1634.77125774,0.00026464,2]
[421692802,1778044242000,-154.55,0.00026343,7]
[421692800,1778044242000,-2551.2,0.00026296,2]
[421692810,1778044242000,-1018.5,0.00026845,2]
[421692804,1778044242000,-2500.0,0.00026464,2]
[421692807,1778044242000,-1396.0,0.00026692,2]
[421692811,1778044242000,-8455.89094412,0.00026934,2]
[421692805,1778044242000,-1018.5,0.00026564,2]
[421692806,1778044242000,-200.0,0.00026671,2]
[421692821,1778044242000,-2000.0,0.00027096,2]
[421692812,1778044242000,-3000.0,0.00027012,2]
[421692822,1778044242000,-2000.0,0.00027096,2]
[421692814,1778044242000,-2000.0,0.00027096,2]
[421692813,1778044242000,-2000.0,0.00027096,2]
[421692815,1778044242000,-2000.0,0.00027096,2]
[421692816,1778044242000,-2000.0,0.00027096,2]
[421692820,1778044242000,-2000.0,0.00027096,2]
[421692819,1778044242000,-2000.0,0.00027096,2]
[421692818,1778044242000,-2000.0,0.00027096,2]
[421692817,1778044242000,-2000.0,0.00027096,2]
[421692824,1778044242000,-2000.0,0.00027096,2]
[421692823,1778044242000,-2000.0,0.00027096,2]
[421692765,1778044242000,-475.44,0.00025229,2]
[421692796,1778044242000,-197.73,0.00026245,14]
[421692798,1778044242000,-296.59,0.00026272,2]
[421692825,1778044242000,-2000.0,0.00027096,2]
[421692792,1778044242000,-399.75850779,0.00026235,2]
[421692795,1778044242000,-197.73,0.00026245,14]
[421692769,1778044242000,-1500.0,0.00025368,2]
[421692770,1778044242000,-1500.0,0.00025368,2]
[421692775,1778044242000,-150.64,0.00025503,2]
[421692768,1778044242000,-1500.0,0.00025368,2]
[421692773,1778044242000,-151.51,0.000255,30]
[421692771,1778044242000,-1500.0,0.00025368,2]
[421692772,1778044242000,-1500.0,0.00025368,2]
[421692774,1778044242000,-154.55,0.000255,30]
[421692777,1778044242000,-2856.51,0.00025786,2]
[421692776,1778044242000,-1117.83469168,0.00025564,2]
[421692778,1778044242000,-350.75,0.00025786,2]
[421692779,1778044242000,-406.24,0.00025786,2]
[421692767,1778044242000,-494.5307258,0.00025368,2]
[421692780,1778044242000,-2915.26,0.00025786,2]
[421692794,1778044242000,-296.59,0.00026245,14]
[421692791,1778044242000,-184.320957,0.00026137,2]
[421692790,1778044242000,-1018.5,0.00026,2]
[421692799,1778044242000,-1018.5,0.00026282,2]
[421692787,1778044242000,-154.55,0.00025922,2]
[421692788,1778044242000,-2742.68307681,0.00025967,2]
[421692789,1778044242000,-550.0,0.00026,2]
[421692782,1778044242000,-961.74205325,0.00025916,2]
[421692783,1778044242000,-2000.0,0.00025916,2]
[421692785,1778044242000,-2000.0,0.00025916,2]
[421692781,1778044242000,-2017.16375829,0.00025916,2]
[421692786,1778044242000,-151.51,0.00025922,2]
[421692784,1778044242000,-2004.32156241,0.00025916,2]
[421692869,1778044243000,-1018.5,0.00027973,2]
[421692864,1778044243000,-166.39269129,0.00027647,2]
[421692862,1778044243000,-154.55,0.00027608,7]
[421692861,1778044243000,-151.51,0.00027608,7]
[421692867,1778044243000,-1018.5,0.00027691,2]
[421692860,1778044243000,-3385.17092439,0.0002756,5]
[421692858,1778044243000,-2000.0,0.00027454,2]
[421692863,1778044243000,-150.0,0.00027647,2]
[421692857,1778044243000,-2000.0,0.00027454,2]
[421692865,1778044243000,-150.0,0.00027647,2]
[421692859,1778044243000,-1852.0,0.00027454,2]
[421692879,1778044243000,-169.54,0.00028,2]
[421692883,1778044243000,-504.0,0.00028174,3]
[421692882,1778044243000,-154.55,0.00028029,30]
[421692881,1778044243000,-151.51,0.00028029,30]
[421692877,1778044243000,-169.54,0.00028,2]
[421692876,1778044243000,-169.54,0.00028,2]
[421692874,1778044243000,-162.55277151,0.00028,7]
[421692871,1778044243000,-600.0,0.00028,2]
[421692875,1778044243000,-169.54,0.00028,2]
[421692878,1778044243000,-169.54,0.00028,2]
[421692895,1778044243000,-1018.5,0.00028255,2]
[421692885,1778044243000,-1700.0,0.0002823,2]
[421692884,1778044243000,-162.55277151,0.000282,7]
[421692866,1778044243000,-1700.95813321,0.00027647,2]
[421692880,1778044243000,-169.54,0.00028,2]
[421692856,1778044243000,-2000.0,0.00027454,2]
[421692838,1778044243000,-1015.9,0.00027397,2]
[421692854,1778044243000,-2000.0,0.00027454,2]
[421692886,1778044243000,-1700.0,0.0002823,2]
[421692830,1778044243000,-151.51,0.00027186,2]
[421692828,1778044243000,-504.0,0.00027137,2]
[421692826,1778044243000,-150.0,0.00027123,20]
[421692829,1778044243000,-1101.23,0.00027151,2]
[421692827,1778044243000,-1018.5,0.00027127,2]
[421692832,1778044243000,-2742.68307681,0.00027278,2]
[421692831,1778044243000,-154.55,0.00027186,2]
[421692833,1778044243000,-173.89882465,0.00027397,2]
[421692834,1778044243000,-230.88441929,0.00027397,2]
[421692837,1778044243000,-1000.0,0.00027397,20]
[421692835,1778044243000,-463.73572786,0.00027397,2]
[421692855,1778044243000,-2000.0,0.00027454,2]
[421692839,1778044243000,-43534.73,0.00027397,10]
[421692840,1778044243000,-327.95,0.000274,7]
[421692841,1778044243000,-500.0,0.000274,7]
[421692842,1778044243000,-58850.58,0.000274,7]
[421692845,1778044243000,-1018.5,0.00027409,2]
[421692847,1778044243000,-2000.0,0.00027454,2]
[421692846,1778044243000,-2000.0,0.00027454,2]
[421692851,1778044243000,-2000.0,0.00027454,2]
[421692843,1778044243000,-162.55277151,0.000274,7]
[421692844,1778044243000,-160.0,0.000274,7]
[421692848,1778044243000,-2000.0,0.00027454,2]
[421692849,1778044243000,-2000.0,0.00027454,2]
[421692853,1778044243000,-2000.0,0.00027454,2]
[421692836,1778044243000,-1500.0,0.00027397,2]
[421692889,1778044243000,-1700.0,0.0002823,2]
[421692887,1778044243000,-1700.0,0.0002823,2]
[421692892,1778044243000,-1700.0,0.0002823,2]
[421692912,1778044243000,-1018.5,0.00028818,2]
[421692919,1778044243000,-160.27,0.00028931,7]
[421692925,1778044243000,-150.322,0.00028971,2]
[421692923,1778044243000,-298.0,0.00028953,2]
[421692926,1778044243000,-1223.425,0.00028971,2]
[421692924,1778044243000,-1268.0,0.00028971,2]
[421692927,1778044243000,-6043.0,0.00028971,2]
[421692933,1778044243000,-1018.5,0.000291,2]
[421692929,1778044243000,-157.13,0.00029006,30]
[421692928,1778044243000,-3625.0,0.00028971,2]
[421692930,1778044243000,-160.27,0.00029006,30]
[421692934,1778044243000,-157.13,0.00029157,7]
[421692913,1778044243000,-157.13,0.00028856,2]
[421692931,1778044243000,-157.13,0.00029082,2]
[421692935,1778044243000,-160.27,0.00029157,7]
[421692936,1778044243000,-200.0,0.00029182,2]
[421692937,1778044243000,-200.0,0.00029182,2]
[421692939,1778044243000,-200.0,0.00029182,2]
[421692946,1778044243000,-327.95,0.000292,7]
[421692938,1778044243000,-200.0,0.00029182,2]
[421692945,1778044243000,-500.0,0.00029199,2]
[421692940,1778044243000,-200.0,0.00029182,2]
[421692944,1778044243000,-268.0,0.00029182,2]
[421692941,1778044243000,-200.0,0.00029182,2]
[421692942,1778044243000,-200.0,0.00029182,2]
[421692943,1778044243000,-200.0,0.00029182,2]
[421692932,1778044243000,-160.27,0.00029082,2]
[421692915,1778044243000,-151.51,0.00028872,7]
[421692888,1778044243000,-1700.0,0.0002823,2]
[421692916,1778044243000,-154.55,0.00028872,7]
[421692917,1778044243000,-386.0,0.00028877,2]
[421692947,1778044243000,-58850.58,0.000292,7]
[421692893,1778044243000,-1700.0,0.0002823,2]
[421692890,1778044243000,-1700.0,0.0002823,2]
[421692894,1778044243000,-1684.0,0.0002823,2]
[421692897,1778044243000,-151.51,0.00028451,2]
[421692908,1778044243000,-157.13,0.00028705,7]
[421692896,1778044243000,-2551.2,0.00028267,2]
[421692907,1778044243000,-500.0,0.00028673,2]
[421692905,1778044243000,-160.27,0.0002863,2]
[421692900,1778044243000,-199.36,0.00028493,2]
[421692904,1778044243000,-157.13,0.0002863,2]
[421692902,1778044243000,-2132.37882144,0.00028559,2]
[421692891,1778044243000,-1700.0,0.0002823,2]
[421692901,1778044243000,-1018.5,0.00028536,2]
[421692899,1778044243000,-200.0,0.0002846,2]
[421692918,1778044243000,-157.13,0.00028931,7]
[421692911,1778044243000,-160.27,0.0002878,30]
[421692909,1778044243000,-160.27,0.00028705,7]
[421692922,1778044243000,-150.0,0.00028953,2]
[421692914,1778044243000,-160.27,0.00028856,2]
[421692921,1778044243000,-150.0,0.00028953,2]
[421692910,1778044243000,-157.13,0.0002878,30]
[421692903,1778044243000,-2742.68307681,0.00028589,2]
[421692906,1778044243000,-163.16558903,0.00028673,5]
[421692898,1778044243000,-154.55,0.00028451,2]
[421692920,1778044243000,-150.0,0.00028953,2]
[421692990,1778044244000,-500.0,0.00029999,2]
[421692989,1778044244000,-500.0,0.00029999,2]
[421692988,1778044244000,-500.0,0.00029999,2]
[421692986,1778044244000,-2000.0,0.00029937,7]
[421692981,1778044244000,-1966.07728138,0.00029533,5]
[421692982,1778044244000,-150.0,0.00029534,2]
[421692983,1778044244000,-1018.5,0.00029664,2]
[421692985,1778044244000,-2000.0,0.00029837,7]
[421692999,1778044244000,-500.0,0.00029999,2]
[421692980,1778044244000,-1051.90137478,0.00029533,5]
[421692984,1778044244000,-2000.0,0.00029737,7]
[421692992,1778044244000,-500.0,0.00029999,2]
[421692996,1778044244000,-500.0,0.00029999,2]
[421692998,1778044244000,-500.0,0.00029999,2]
[421693000,1778044244000,-650.0,0.0003,2]
[421692994,1778044244000,-500.0,0.00029999,2]
[421692995,1778044244000,-500.0,0.00029999,2]
[421692991,1778044244000,-500.0,0.00029999,2]
[421693002,1778044244000,-200.0,0.0003,2]
[421693009,1778044244000,-254.44,0.000301,14]
[421693011,1778044244000,-190.39,0.00030137,2]
[421693010,1778044244000,-150.0,0.000301,30]
[421693012,1778044244000,-200.0,0.00030137,2]
[421692978,1778044244000,-1093.1559669,0.00029533,5]
[421692997,1778044244000,-500.0,0.00029999,2]
[421692979,1778044244000,-1121.05665125,0.00029533,5]
[421692964,1778044244000,-200.92336054,0.0002926,2]
[421692987,1778044244000,-1018.5,0.00029945,2]
[421692948,1778044244000,-504.0,0.0002921,4]
[421692950,1778044244000,-194.277,0.00029221,2]
[421692951,1778044244000,-176.593,0.00029221,2]
[421692949,1778044244000,-671.63544967,0.00029221,2]
[421692963,1778044244000,-160.34,0.00029232,30]
[421692957,1778044244000,-243.041,0.00029221,2]
[421692959,1778044244000,-1056.0,0.00029221,2]
[421692956,1778044244000,-250.0,0.00029221,2]
[421692960,1778044244000,-2929.0,0.00029221,2]
[421692961,1778044244000,-786.0,0.00029221,2]
[421692958,1778044244000,-183.0,0.00029221,2]
[421692962,1778044244000,-157.13,0.00029232,30]
[421692965,1778044244000,-151.51,0.00029294,30]
[421693014,1778044244000,-200.0,0.00030137,40]
[421692966,1778044244000,-154.55,0.00029294,30]
[421692972,1778044244000,-1123.17134287,0.00029533,5]
[421692973,1778044244000,-1033.26256836,0.00029533,5]
[421692967,1778044244000,-200.0,0.00029312,2]
[421692968,1778044244000,-152.0,0.00029356,3]
[421692974,1778044244000,-1137.75740264,0.00029533,5]
[421692975,1778044244000,-1089.72223023,0.00029533,5]
[421692969,1778044244000,-1018.5,0.00029382,2]
[421692971,1778044244000,-1124.82538427,0.00029533,5]
[421692970,1778044244000,-513.59851826,0.00029428,2]
[421692977,1778044244000,-1058.5798903,0.00029533,5]
[421692976,1778044244000,-1039.32423505,0.00029533,5]
[421693013,1778044244000,-6321.0,0.00030137,120]
[421692993,1778044244000,-500.0,0.00029999,2]
[421693006,1778044244000,-200.0,0.0003,2]
[421693033,1778044244000,-327.95,0.000308,7]
[421693037,1778044244000,-200.0,0.00031037,2]
[421693042,1778044244000,-482.0,0.00031294,30]
[421693041,1778044244000,-319.0,0.0003129,30]
[421693043,1778044244000,-158.0,0.00031302,30]
[421693046,1778044244000,-984.0,0.00031302,30]
[421693044,1778044244000,-250.0,0.00031302,30]
[421693045,1778044244000,-318.0,0.00031302,30]
[421693047,1778044244000,-321.0,0.00031302,30]
[421693051,1778044244000,-174.0,0.00031302,30]
[421693052,1778044244000,-200.0,0.00031337,2]
[421693049,1778044244000,-457.0,0.00031302,30]